bitfinex/quotes_BTCUSD_20251219
["timestamp","ask_amount","ask_price","bid_price","bid_amount"]
[1766128441841,0.05108,88358.0,88337.0,0.01132028]
[1766128442043,0.6177,88358.0,88337.0,0.01132028]
[1766128442703,1.07413,88358.0,88337.0,0.01132028]
[1766128442912,1.07413,88358.0,88335.0,0.01132108]
[1766128442913,0.01131515,88357.0,88335.0,0.01132108]
[1766128443109,0.01131515,88357.0,88335.0,5.4e-07]
[1766128443318,0.58527,88353.0,88335.0,5.4e-07]
[1766128443522,1.68965524,88350.0,88335.0,5.4e-07]
[1766128443946,0.00576,88352.0,88336.0,0.22640825]
[1766128444284,0.00576,88352.0,88335.0,5.4e-07]
[1766128444819,0.61219,88352.0,88335.0,5.4e-07]
[1766128445023,1.0627,88352.0,88335.0,5.4e-07]
[1766128445223,0.45051,88351.0,88335.0,5.4e-07]
[1766128445420,0.00576,88352.0,88335.0,5.4e-07]
[1766128445421,1.05694,88350.0,88335.0,5.4e-07]
[1766128445621,0.60643,88351.0,88335.0,5.4e-07]
[1766128445853,0.05108,88350.0,88336.0,0.01132041]
[1766128445998,1.05694,88357.0,88337.0,0.01132028]
[1766128446210,0.00010985,88360.0,88346.0,0.01131913]
[1766128446423,0.02258,88356.0,88346.0,0.01131913]
[1766128446649,0.00010985,88360.0,88357.0,0.23767026]
[1766128446853,0.05108,88359.0,88356.0,0.01131785]
[1766128447090,0.05108,88359.0,88356.0,0.23767364]
[1766128447320,0.05108,88359.0,88354.0,0.0113181]
[1766128447526,0.05108,88359.0,88347.0,0.011319]
[1766128447761,0.05108,88359.0,88344.0,0.27390452]
[1766128447762,0.05108,88359.0,88348.0,0.01131887]
[1766128447962,0.05108,88359.0,88349.0,0.01131874]
[1766128448126,0.05108,88359.0,88346.0,0.01131913]
[1766128448331,0.05108,88359.0,88344.0,0.0361993]
[1766128448549,0.05108,88359.0,88340.0,0.0113199]
[1766128448809,0.05108,88359.0,88337.0,0.01132028]
[1766128449063,0.60643,88355.0,88332.0,0.22641776]
[1766128449315,0.60643,88355.0,88333.0,0.01132079]
[1766128449513,0.60643,88355.0,88330.0,0.01132118]
[1766128449724,0.45051,88349.0,88326.0,0.01172169]
[1766128449946,1.05694,88346.0,88326.0,0.0004]
[1766128450168,0.60643,88343.0,88326.0,0.0004]
[1766128450381,0.60643,88341.0,88326.0,0.0004]
[1766128450586,0.01707515,88340.0,88326.0,0.0004]
[1766128451234,0.00576,88340.0,88326.0,0.0004]
[1766128451441,0.00576,88340.0,88328.0,0.01132143]
[1766128451653,0.60643,88349.0,88329.0,0.01132131]
[1766128451862,0.60643,88349.0,88326.0,0.0004]
[1766128451863,0.04532,88339.0,88326.0,0.01172169]
[1766128452105,0.60643,88347.0,88326.0,0.0004]
[1766128452106,0.05108,88338.0,88326.0,0.0004]
[1766128452644,0.05108,88338.0,88314.0,0.01132323]
[1766128452645,0.45051,88335.0,88309.0,0.05]
[1766128453072,0.06240015,88338.0,88300.0,0.0004]
[1766128453073,0.01132297,88316.0,88300.0,0.0004]
[1766128453235,0.46183413,88307.0,88283.0,0.0008]
[1766128453407,1.24425014,88301.0,88283.0,0.0004]
[1766128453646,0.60643,88299.0,88283.0,0.0004]
[1766128453850,0.45051,88295.0,88272.0,0.0361993]
[1766128454081,0.45051,88295.0,88265.0,0.22658812]
[1766128454082,1.23292524,88293.0,88264.0,0.01132964]
[1766128454284,0.01132669,88287.0,88262.0,0.00365988]
[1766128454438,1.05694,88277.0,88262.0,0.00365988]
[1766128454637,0.05108,88276.0,88262.0,0.01498978]
[1766128454841,0.00010972,88293.0,88282.0,0.01132733]
[1766128454842,1.05694,88292.0,88282.0,0.01132733]
[1766128455021,0.05108,88291.0,88276.0,0.22656214]
[1766128455227,0.05108,88291.0,88270.0,0.01132887]
[1766128455493,0.45051,88286.0,88262.0,0.01498978]
[1766128455773,0.45051,88278.0,88262.0,0.00365988]
[1766128455980,0.00576,88277.0,88262.0,0.00365988]
[1766128456497,1.05694,88276.0,88262.0,0.00365988]
[1766128456701,0.00576,88277.0,88265.0,0.01132951]
[1766128456985,0.05108,88276.0,88264.0,0.01132964]
[1766128457147,0.04532,88275.0,88262.0,0.01498978]
[1766128457418,0.04532,88275.0,88262.0,0.00365988]
[1766128457563,0.04532,88275.0,88262.0,0.01498978]
[1766128457768,0.04532,88275.0,88262.0,0.00365988]
[1766128458389,0.45051,88270.0,88252.0,0.22662275]
[1766128458600,0.00576,88269.0,88258.0,0.01133041]
[1766128458775,0.05108,88269.0,88258.0,0.01133041]
[1766128459122,0.05108,88269.0,88257.0,0.01133054]
[1766128459345,0.45051,88278.0,88265.0,0.01132951]
[1766128459557,0.05108,88277.0,88262.0,0.0113299]
[1766128459766,0.05108,88277.0,88261.0,0.01133003]
[1766128459904,0.05108,88277.0,88254.0,0.01133093]
[1766128460107,0.05108,88277.0,88255.0,0.0113308]
[1766128460308,0.05108,88277.0,88259.0,0.01133028]
[1766128460659,0.05112,88276.0,88253.0,0.01133105]
[1766128460789,0.00576,88275.0,88257.0,0.01133054]
[1766128460984,0.45051,88274.0,88254.0,0.01133093]
[1766128461196,0.45051,88274.0,88256.0,0.01133067]
[1766128461389,0.45051,88274.0,88255.0,0.0113308]
[1766128461615,0.45051,88274.0,88248.0,0.0117317]
[1766128461816,1.05694,88272.0,88250.0,0.01133144]
[1766128462018,0.05112,88271.0,88249.0,0.01133157]
[1766128462219,0.05112,88271.0,88248.0,0.0117317]
[1766128462220,1.05694,88267.0,88248.0,0.0004]
[1766128462438,1.23292524,88260.0,88248.0,0.0004]
[1766128462622,0.46758515,88259.0,88248.0,0.0004]
[1766128462825,0.45627,88259.0,88248.0,0.0004]
[1766128463069,0.60643,88274.0,88259.0,0.01133028]
[1766128463269,0.45051,88272.0,88251.0,0.01133131]
[1766128463448,0.00576,88271.0,88251.0,0.0361993]
[1766128463650,0.00586968,88271.0,88255.0,0.0113308]
[1766128463860,0.05112,88270.0,88253.0,0.01133105]
[1766128464065,0.45051,88266.0,88252.0,0.01133118]
[1766128464269,1.28404524,88270.0,88248.0,0.0004]
[1766128464270,0.60643,88263.0,88248.0,0.0004]
[1766128464473,0.60643,88266.0,88251.0,0.23795566]
[1766128464790,0.05112,88265.0,88252.0,0.0361993]
[1766128465056,0.00010968,88271.0,88254.0,0.01133093]
[1766128465239,0.04536,88264.0,88257.0,0.01133054]
[1766128465378,0.00576,88263.0,88248.0,0.0004]
[1766128465577,0.00576,88263.0,88255.0,0.0113308]
[1766128465778,0.05112,88262.0,88255.0,0.0113308]
[1766128466337,0.05112,88262.0,88248.0,0.0004]
[1766128466534,0.05112,88262.0,88251.0,0.01133131]
[1766128466690,0.05112,88262.0,88250.0,0.01133144]
[1766128467127,0.05112,88262.0,88249.0,0.01133157]
[1766128467291,0.05112,88262.0,88248.0,0.0117317]
[1766128467487,0.05112,88262.0,88249.0,0.01133157]
[1766128467745,0.01292,88262.0,88256.0,0.22661134]
[1766128467988,0.00576,88261.0,88258.0,0.01133041]
[1766128468225,0.00010968,88271.0,88259.0,0.01133028]
[1766128468439,0.05112,88270.0,88261.0,0.01133003]
[1766128468707,0.05112,88269.0,88258.0,0.01133041]
[1766128468874,0.13612,88283.0,88258.0,0.01133041]
[1766128468875,0.13612,88308.0,88283.0,0.0113272]
[1766128469058,0.60643,88306.0,88289.0,0.01132643]
[1766128469275,1.05694,88305.0,88286.0,0.01132682]
[1766128469682,1.05694,88306.0,88285.0,0.01132695]
[1766128469889,0.45051,88302.0,88279.0,0.01132772]
[1766128470089,0.61219,88301.0,88282.0,0.01132733]
[1766128470208,0.45051,88299.0,88280.0,0.01132759]
[1766128470424,0.45051,88299.0,88280.0,0.23787825]
[1766128470623,0.60643,88296.0,88277.0,0.01132797]
[1766128470846,0.45051,88294.0,88279.0,0.01132772]
[1766128471032,0.00576,88293.0,88279.0,0.01132772]
[1766128471438,0.01707515,88293.0,88278.0,0.01132785]
[1766128471640,0.00576,88293.0,88283.0,0.0113272]
[1766128471842,0.00576,88293.0,88286.0,0.01132682]
[1766128472039,0.00576,88293.0,88286.0,0.23786229]
[1766128472240,0.00576,88293.0,88287.0,0.01132669]
[1766128472673,0.45051,88303.0,88293.0,0.01132592]
[1766128472908,0.45051,88303.0,88289.0,0.22652878]
[1766128472909,0.04536,88302.0,88299.0,0.01132515]
[1766128473115,0.00010956,88308.0,88305.0,0.01132438]
[1766128473317,0.05112,88307.0,88304.0,0.01132451]
[1766128473523,0.05112,88307.0,88297.0,0.01132541]
[1766128473885,0.05112,88307.0,88290.0,0.01132631]
[1766128474083,0.05112,88307.0,88291.0,0.01132618]
[1766128474287,0.01131515,88306.0,88285.0,0.01132695]
[1766128474578,0.05112,88307.0,88284.0,0.22654028]
[1766128474794,0.05112,88307.0,88278.0,0.32047]
[1766128474795,0.05112,88307.0,88289.0,0.22652878]
[1766128475035,0.05112,88307.0,88289.0,0.22652797]
[1766128475237,0.05112,88307.0,88289.0,0.01132643]
[1766128475447,1.05736,88306.0,88288.0,0.01132656]
[1766128475659,1.05736,88306.0,88289.0,0.01132643]
[1766128475878,1.05736,88306.0,88290.0,0.01132631]
[1766128476094,1.05736,88306.0,88282.0,0.22654469]
[1766128476095,1.05736,88306.0,88294.0,0.22651561]
[1766128476355,1.05736,88306.0,88289.0,0.01132643]
[1766128476799,1.05736,88306.0,88287.0,0.01132669]
[1766128477019,1.05736,88306.0,88282.0,0.23787157]
[1766128477020,1.05736,88304.0,88281.0,0.06134585]
[1766128477259,1.06867515,88303.0,88284.0,0.01132708]
[1766128477475,1.05736,88302.0,88287.0,0.01132669]
[1766128477705,0.01707515,88301.0,88269.0,0.22657781]
[1766128477926,0.001099,88287.0,88272.0,0.01132862]
[1766128478129,0.05112,88286.0,88273.0,0.01132849]
[1766128478422,0.05112,88286.0,88279.0,0.01132772]
[1766128478635,0.05112,88286.0,88274.0,0.23789563]
[1766128478837,0.05112,88286.0,88274.0,0.01132836]
[1766128479041,0.05112,88286.0,88270.0,0.01132887]
[1766128479264,0.05112,88286.0,88268.0,0.01132913]
[1766128479678,0.05112,88286.0,88266.0,0.01132939]
[1766128479883,0.05112,88286.0,88268.0,0.01132913]
[1766128480363,0.0361993,88276.0,88254.0,0.0002481]
[1766128480556,0.47387,88272.0,88254.0,0.0002481]
[1766128480763,0.58349,88271.0,88254.0,0.0002481]
[1766128480968,0.88775165,88270.0,88254.0,0.0002481]
[1766128481198,0.47387,88268.0,88254.0,1e-07]
[1766128481401,0.58349,88262.0,88254.0,1e-07]
[1766128481607,0.58349,88262.0,88248.0,0.0004]
[1766128481608,0.47387,88260.0,88248.0,0.0004]
[1766128481812,0.00036512,88260.0,88248.0,0.0004]
[1766128482014,0.05112,88259.0,88248.0,0.0004]
[1766128482877,0.05112,88258.0,88230.0,0.84239165]
[1766128483088,0.58349,88277.0,88262.0,0.0113299]
[1766128483291,0.84239165,88290.0,88262.0,0.0113299]
[1766128483292,0.05112,88276.0,88262.0,0.00010968]
[1766128483500,0.84239165,88280.0,88263.0,0.01132977]
[1766128483705,0.05112,88279.0,88262.0,0.00010968]
[1766128484139,0.84239165,88272.0,88262.0,0.00010968]
[1766128484348,0.00576,88271.0,88262.0,6.8e-07]
[1766128484992,0.58349,88270.0,88262.0,6.8e-07]
[1766128485207,0.47387,88270.0,88262.0,6.8e-07]
[1766128485413,0.58349,88265.0,88262.0,6.8e-07]
[1766128485626,1.05736,88275.0,88265.0,0.000109]
[1766128485839,0.04536,88264.0,88262.0,6.8e-07]
[1766128486256,0.00576,88263.0,88262.0,6.8e-07]
[1766128486458,1e-06,88264.0,88262.0,6.8e-07]
[1766128486660,0.00576,88263.0,88262.0,6.8e-07]
[1766128487218,0.05112,88263.0,88262.0,6.8e-07]
[1766128487426,0.58349,88283.0,88266.0,0.01132939]
[1766128487611,0.05112,88282.0,88268.0,0.01132913]
[1766128487817,0.05112,88281.0,88267.0,0.01132926]
[1766128488055,0.00576,88280.0,88265.0,0.48895]
[1766128488274,0.00576,88280.0,88262.0,0.01133058]
[1766128488448,0.00576,88280.0,88262.0,6.8e-07]
[1766128488647,0.00576,88280.0,88262.0,0.01133058]
[1766128488876,0.84815165,88280.0,88262.0,6.8e-07]
[1766128489087,1.05736,88277.0,88262.0,6.8e-07]
[1766128489285,0.01131515,88279.0,88262.0,6.8e-07]
[1766128489286,0.84239165,88272.0,88262.0,6.8e-07]
[1766128489501,0.04536,88281.0,88262.0,6.8e-07]
[1766128489502,0.01776988,88292.0,88274.0,0.01132836]
[1766128489697,0.01776988,88292.0,88264.0,0.48895]
[1766128489698,0.05112,88291.0,88279.0,0.01132772]
[1766128489904,0.04536,88290.0,88274.0,0.01132836]
[1766128490078,0.04536,88290.0,88278.0,0.01132785]
[1766128490280,0.04536,88290.0,88275.0,0.01132823]
[1766128490481,1.05736,88299.0,88277.0,0.01132797]
[1766128490759,0.04536,88289.0,88275.0,0.22656437]
[1766128490976,0.00576,88288.0,88277.0,0.01132797]
[1766128491147,0.00576,88288.0,88272.0,0.48895]
[1766128491305,0.00576,88288.0,88274.0,0.01132836]
[1766128491526,0.00576,88288.0,88271.0,0.04752804]
[1766128491725,0.00576,88288.0,88271.0,0.0361993]
[1766128491993,0.47387,88284.0,88260.0,0.05001839]
[1766128492128,1.05736,88279.0,88259.0,0.01133028]
[1766128492334,0.01707515,88278.0,88258.0,0.01133041]
[1766128492582,0.58349,88277.0,88254.0,0.04753023]
[1766128492710,0.47387,88276.0,88254.0,0.04753023]
[1766128492908,0.47387,88276.0,88252.0,0.01133118]
[1766128493110,0.84239165,88272.0,88250.0,0.05001839]
[1766128493366,0.84239165,88272.0,88250.0,0.01133144]
[1766128493367,0.05112,88271.0,88250.0,0.01133144]
[1766128493513,0.05112,88271.0,88246.0,0.22663733]
[1766128493514,0.47387,88270.0,88246.0,0.22663733]
[1766128493712,1.05736,88270.0,88249.0,0.01133157]
[1766128493961,0.05112,88271.0,88243.0,0.05001839]
[1766128494275,0.47387,88269.0,88248.0,0.0113317]
[1766128494486,0.47387,88267.0,88244.0,0.05001839]
[1766128494679,0.05112,88271.0,88241.0,0.0361993]
[1766128494680,0.47387,88264.0,88243.0,0.01133234]
[1766128494819,0.47387,88264.0,88241.0,0.0361993]
[1766128494820,0.00576,88263.0,88241.0,0.0361993]
[1766128495029,0.00576,88263.0,88241.0,0.0475319]
[1766128495314,0.00576,88263.0,88241.0,0.0361993]
[1766128495478,0.01707515,88263.0,88239.0,0.01133285]
[1766128495680,0.00576,88263.0,88239.0,0.01133285]
[1766128496104,0.00576,88263.0,88242.0,0.01133247]
[1766128496304,0.00576,88263.0,88240.0,0.0361993]
[1766128497505,0.00576,88263.0,88245.0,0.48895]
[1766128497759,0.00576,88263.0,88246.0,0.23796985]
[1766128497930,0.00576,88263.0,88241.0,0.22665158]
[1766128497931,0.05112,88263.0,88243.0,0.01133234]
[1766128498147,0.05112,88263.0,88239.0,0.01133285]
[1766128498356,0.05112,88263.0,88236.0,0.0589954]
[1766128498514,0.05112,88263.0,88240.0,0.0361993]
[1766128498515,1.05736,88262.0,88240.0,0.0361993]
[1766128498734,0.47387,88261.0,88240.0,0.04753202]
[1766128498946,0.47387,88261.0,88240.0,0.0361993]
[1766128499148,0.89351165,88260.0,88243.0,0.01133234]
[1766128499343,0.05112,88260.0,88244.0,0.01359865]
[1766128499541,0.05112,88260.0,88246.0,0.01133195]
[1766128499793,0.05112,88260.0,88248.0,0.0113317]
[1766128499986,0.05112,88260.0,88245.0,0.01133208]
[1766128500187,0.05112,88260.0,88244.0,0.50028221]
[1766128500389,0.05112,88260.0,88245.0,0.01133208]
[1766128500675,0.05112,88260.0,88251.0,0.01133131]
[1766128500895,0.00010948,88263.0,88254.0,0.0361993]
[1766128501107,0.00576,88274.0,88272.0,0.01132862]
[1766128501328,0.04536,88286.0,88278.0,0.01132785]
[1766128501531,0.04536,88286.0,88285.0,0.01132695]
[1766128501532,0.00576,88286.0,88285.0,0.01132695]
[1766128501747,0.58349,88311.0,88297.0,0.01132541]
[1766128501942,0.58349,88311.0,88296.0,0.22651082]
[1766128501943,0.05112,88310.0,88298.0,0.04978964]
[1766128502098,0.89351165,88310.0,88291.0,0.01132618]
[1766128502305,0.89351165,88310.0,88287.0,0.05001839]
[1766128502306,1.05736,88308.0,88287.0,0.05001839]
[1766128502502,1.05736,88308.0,88288.0,0.01132656]
[1766128502750,1.05736,88308.0,88289.0,0.01132643]
[1766128502950,1.05736,88308.0,88292.0,0.01132605]
[1766128503162,1.05736,88308.0,88290.0,0.01132631]
[1766128503371,0.05112,88310.0,88290.0,0.01132631]
[1766128503372,0.05112,88310.0,88291.0,0.01132618]
[1766128503575,0.05112,88310.0,88287.0,0.27655015]
[1766128503576,0.05112,88310.0,88289.0,0.01132643]
[1766128503782,0.05112,88310.0,88291.0,0.01132618]
[1766128503985,0.00576,88309.0,88291.0,0.01132618]
[1766128504193,0.05112,88309.0,88294.0,0.01132579]
[1766128504398,0.05112,88309.0,88287.0,0.27655055]
[1766128504399,0.05112,88309.0,88291.0,0.01132618]
[1766128504606,0.84239165,88301.0,88283.0,0.0113272]
[1766128504817,1.06111,88300.0,88282.0,0.22654674]
[1766128505024,1.06111,88300.0,88283.0,0.0113272]
[1766128505239,1.06111,88300.0,88284.0,0.01132708]
[1766128505460,0.00576,88300.0,88284.0,0.23786627]
[1766128505668,0.00576,88300.0,88286.0,0.22653527]
[1766128505897,0.00576,88299.0,88288.0,0.01132656]
[1766128506103,0.00576,88298.0,88291.0,0.01132618]
[1766128506310,0.00576,88298.0,88293.0,0.01132592]
[1766128506513,0.00576,88298.0,88295.0,0.01132566]
[1766128506921,0.00576,88298.0,88293.0,0.01132592]
[1766128507456,0.00576,88298.0,88291.0,0.01132618]
[1766128507693,0.00576,88298.0,88293.0,0.01132592]
[1766128507887,0.00576,88298.0,88294.0,0.01132579]
[1766128508107,0.00576,88298.0,88292.0,0.01132605]
[1766128508308,0.00576,88298.0,88286.0,0.05001839]
[1766128508513,0.00576,88298.0,88282.0,0.01132733]
[1766128508514,0.00576,88298.0,88284.0,0.01132708]
[1766128508731,0.001099,88284.0,88266.0,0.37508]
[1766128508906,0.001099,88284.0,88259.0,0.01133028]
[1766128508907,0.84239165,88280.0,88259.0,0.01133028]
[1766128509102,0.01131515,88279.0,88263.0,0.01132977]
[1766128509422,0.01131515,88279.0,88262.0,0.0113299]
[1766128509423,0.57481,88292.0,88276.0,0.0113281]
[1766128509786,0.48054,88298.0,88283.0,0.0361993]
[1766128509987,0.04536,88291.0,88283.0,0.0361993]
[1766128510146,0.00576,88290.0,88283.0,0.0361993]
[1766128510421,0.00576,88289.0,88281.0,0.01132746]
[1766128510740,0.001099,88281.0,88268.0,0.04752843]
[1766128510934,0.00576,88280.0,88277.0,0.01132797]
[1766128511065,0.00576,88280.0,88272.0,0.01132862]
[1766128511266,0.00576,88280.0,88273.0,0.01132849]
[1766128511496,0.5259,88291.0,88273.0,0.01132849]
[1766128511497,0.00576,88279.0,88275.0,0.23788888]
[1766128511703,0.00576,88279.0,88270.0,0.3578]
[1766128511704,0.00576,88283.0,88282.0,0.01132733]
[1766128511913,0.00010954,88292.0,88288.0,0.01132656]
[1766128512170,0.00576,88291.0,88285.0,0.01132695]
[1766128512525,0.00576,88291.0,88283.0,0.0361993]
[1766128512526,0.04536,88304.0,88296.0,0.01132554]
[1766128512726,0.00576,88303.0,88297.0,0.01359049]
[1766128513216,0.00576,88302.0,88296.0,0.00010954]
[1766128513436,0.001099,88297.0,88271.0,0.23790325]
[1766128513643,0.001099,88297.0,88272.0,0.05001839]
[1766128513644,0.57481,88294.0,88272.0,0.05001839]
[1766128513849,0.57481,88294.0,88275.0,0.01132823]
[1766128514062,0.57481,88294.0,88272.0,0.05001839]
[1766128514306,0.01131515,88293.0,88272.0,0.05001839]
[1766128514522,0.57481,88294.0,88273.0,0.01132849]
[1766128515054,0.57481,88294.0,88272.0,0.05001839]
[1766128515256,0.57481,88294.0,88271.0,0.01132874]
[1766128515482,0.57481,88294.0,88270.0,0.00011]
[1766128515685,0.84239165,88290.0,88269.0,0.0475283]
[1766128515886,0.05112,88289.0,88270.0,0.01132887]
[1766128516087,0.05112,88289.0,88273.0,0.01132849]
[1766128516300,0.05112,88289.0,88274.0,0.01132836]
[1766128516464,0.05112,88289.0,88277.0,0.01132797]
[1766128516667,0.05101,88289.0,88282.0,0.04752663]
[1766128516889,0.00576,88292.0,88284.0,0.05001839]
[1766128517098,0.00576,88292.0,88282.0,0.0361993]
[1766128517305,0.00576,88292.0,88274.0,0.05001839]
[1766128517515,0.00576,88292.0,88271.0,0.23801179]
[1766128517516,0.00576,88292.0,88273.0,0.05001839]
[1766128517680,0.00576,88292.0,88273.0,0.06134688]
[1766128517985,0.00576,88292.0,88272.0,0.01132862]
[1766128518160,1.05535,88291.0,88269.0,0.011329]
[1766128518371,0.48054,88291.0,88275.0,0.01132823]
[1766128518629,0.48054,88291.0,88276.0,0.0113281]
[1766128518842,0.00576,88292.0,88282.0,0.01132733]
[1766128519010,0.00576,88292.0,88281.0,0.01132746]
[1766128519500,0.00576,88292.0,88283.0,0.0113272]
[1766128519665,0.017767,88308.0,88295.0,0.01132566]
[1766128519666,0.04536,88308.0,88295.0,0.01132566]
[1766128519865,0.00576,88307.0,88295.0,0.01132566]
[1766128520505,0.00576,88307.0,88292.0,0.22652038]
[1766128520706,0.00576,88307.0,88295.0,0.01132566]
[1766128520908,0.00576,88307.0,88293.0,0.01132592]
[1766128521112,0.00576,88307.0,88294.0,0.01132579]
[1766128521314,0.00576,88307.0,88291.0,0.01132618]
[1766128521514,0.00576,88307.0,88287.0,0.05001839]
[1766128521764,0.00576,88307.0,88290.0,0.01132631]
[1766128521968,0.001099,88290.0,88287.0,0.0001095]
[1766128522139,0.00576,88289.0,88287.0,0.0001095]
[1766128524281,0.00576,88301.0,88291.0,0.01132618]
[1766128524461,0.04536,88308.0,88292.0,0.01359126]
[1766128524664,0.84239165,88320.0,88302.0,0.01132477]
[1766128524866,0.0113199,88340.0,88309.0,0.01132387]
[1766128524867,0.00576,88319.0,88309.0,0.01132387]
[1766128525177,0.00576,88318.0,88311.0,0.01132361]
[1766128525420,0.00576,88317.0,88300.0,0.23782508]
[1766128525586,0.001099,88311.0,88304.0,0.01132451]
[1766128525795,0.001099,88311.0,88303.0,0.01132464]
[1766128525995,0.00576,88316.0,88303.0,0.17432]
[1766128526395,0.00576,88316.0,88303.0,0.18564464]
[1766128526600,0.00576,88316.0,88309.0,0.22647748]
[1766128526807,0.00576,88316.0,88306.0,0.01132425]
[1766128527006,0.00576,88316.0,88305.0,0.01132438]
[1766128527169,0.00576,88316.0,88306.0,0.01132425]
[1766128527370,0.00576,88316.0,88307.0,0.01132413]
[1766128527673,0.00576,88316.0,88306.0,0.01132425]
[1766128527879,0.00576,88322.0,88315.0,0.0113231]
[1766128528082,0.00576,88322.0,88316.0,0.01358757]
[1766128528283,0.00576,88327.0,88317.0,0.01132284]
[1766128528485,0.00576,88327.0,88318.0,0.02490998]
[1766128528687,0.04536,88349.0,88330.0,0.01132118]
[1766128528888,0.04536,88349.0,88331.0,0.01358526]
[1766128528889,0.00576,88348.0,88331.0,0.01358526]
[1766128529122,0.00586956,88348.0,88327.0,0.001099]
[1766128529313,0.00586956,88348.0,88326.0,0.0361993]
[1766128529514,0.00586956,88348.0,88319.0,0.23777302]
[1766128529515,1.05535,88327.0,88304.0,0.03953266]
[1766128529714,0.84239165,88320.0,88287.0,0.23853266]
[1766128529945,0.84239165,88320.0,88297.0,0.0361993]
[1766128530165,0.48054,88317.0,88297.0,0.0361993]
[1766128530321,0.48054,88317.0,88280.0,1.06894155]
[1766128530322,0.84239165,88310.0,88288.0,0.02265]
[1766128530530,0.48054,88307.0,88285.0,0.22653904]
[1766128530726,0.48054,88307.0,88290.0,0.01132631]
[1766128530908,0.48054,88307.0,88291.0,0.01132618]
[1766128531250,0.48054,88307.0,88290.0,0.01132631]
[1766128531421,0.48054,88307.0,88285.0,0.22653904]
[1766128531594,0.05112,88309.0,88293.0,0.01132592]
[1766128531798,0.05112,88309.0,88297.0,0.01132541]
[1766128532004,0.05112,88309.0,88298.0,0.01359034]
[1766128532453,0.05112,88309.0,88292.0,0.01132605]
[1766128532651,0.05112,88309.0,88295.0,0.01132566]
[1766128532851,0.05112,88309.0,88294.0,0.01132579]
[1766128533114,0.05112,88309.0,88292.0,0.01132605]
[1766128533316,0.05112,88309.0,88286.0,0.02265]
[1766128533488,0.05112,88309.0,88288.0,0.01132656]
[1766128533699,0.05112,88309.0,88289.0,0.01132643]
[1766128534002,0.05112,88309.0,88290.0,0.01132631]
[1766128534626,0.65245,88309.0,88292.0,0.01132605]
[1766128534829,0.65245,88309.0,88294.0,0.01132579]
[1766128535058,0.65245,88309.0,88293.0,0.01132592]
[1766128535274,0.65245,88309.0,88292.0,0.01132605]
[1766128535404,0.65245,88309.0,88287.0,0.01132669]
[1766128535606,0.65245,88309.0,88289.0,0.01132643]
[1766128535807,0.65245,88309.0,88290.0,0.01132631]
[1766128536033,0.65245,88309.0,88293.0,0.01132592]
[1766128536435,0.65245,88309.0,88291.0,0.01132618]
[1766128536613,0.65245,88309.0,88293.0,0.01132592]
[1766128536816,0.48054,88311.0,88299.0,0.01132515]
[1766128537081,0.04536,88321.0,88311.0,0.001099]
[1766128537279,0.00576,88320.0,88311.0,0.001099]
[1766128537472,0.00576,88320.0,88298.0,0.01132528]
[1766128537770,0.84815165,88320.0,88295.0,0.0361993]
[1766128537941,0.84239165,88310.0,88286.0,0.01132682]
[1766128538123,0.84239165,88310.0,88285.0,0.05096911]
[1766128538124,0.01707515,88309.0,88285.0,0.05096911]
[1766128538324,1.08355,88308.0,88288.0,0.01132656]
[1766128538550,1.08355,88308.0,88290.0,0.01132631]
[1766128538845,1.08355,88308.0,88288.0,0.05085922]
[1766128539048,1.08355,88308.0,88289.0,0.23785521]
[1766128539363,1.08355,88308.0,88288.0,0.03953266]
[1766128539563,0.48222,88306.0,88290.0,0.03953266]
[1766128539711,1.08355,88306.0,88289.0,0.03953266]
[1766128540291,0.00576,88309.0,88287.0,0.03953266]
[1766128540292,1.08355,88298.0,88287.0,0.03953266]
[1766128540459,0.06243515,88297.0,88285.0,0.0001095]
[1766128540627,0.05112,88297.0,88285.0,0.0001095]
[1766128541230,0.01131515,88296.0,88281.0,0.03953266]
[1766128541494,0.01142463,88296.0,88279.0,2.66e-06]
[1766128541697,0.01142463,88296.0,88267.0,0.00576]
[1766128541698,0.01142463,88296.0,88277.0,2.66e-06]
[1766128541875,0.0361993,88282.0,88249.0,0.0785757]
[1766128542172,0.0361993,88282.0,88246.0,0.22663814]
[1766128542173,1.23561543,88275.0,88246.0,0.01133195]
[1766128542386,1.23561543,88275.0,88245.0,0.0361993]
[1766128542387,1.08355,88273.0,88245.0,0.0361993]
[1766128542592,0.0361993,88249.0,88231.0,0.0785757]
[1766128542818,0.0361993,88249.0,88210.0,0.0004]
[1766128542819,1.23561543,88241.0,88218.0,0.01133555]
[1766128543036,0.01707515,88240.0,88214.0,0.01133606]
[1766128543236,1.08355,88239.0,88219.0,0.01133542]
[1766128543439,0.60133,88235.0,88220.0,0.01133529]
[1766128543612,0.60133,88235.0,88224.0,0.01133478]
[1766128543778,0.00576,88240.0,88224.0,0.0116999]
[1766128543984,0.00576,88240.0,88224.0,0.00036512]
[1766128544183,0.00576,88240.0,88235.0,0.001099]
[1766128544611,0.00576,88240.0,88224.0,0.00036512]
[1766128545570,1.24137543,88240.0,88216.0,0.0361993]
[1766128545774,1.08355,88239.0,88216.0,0.0361993]
[1766128545990,0.48222,88239.0,88216.0,0.0361993]
[1766128546193,1.24174033,88240.0,88208.0,0.22673543]
[1766128546194,0.60133,88236.0,88210.0,0.0004]
[1766128546325,0.60133,88228.0,88201.0,0.22675479]
[1766128546536,0.60133,88226.0,88205.0,0.01133722]
[1766128546740,0.60133,88225.0,88207.0,0.01133696]
[1766128546940,0.60133,88225.0,88208.0,0.01133684]
[1766128547162,0.65245,88224.0,88208.0,0.01133684]
[1766128547362,0.53334,88224.0,88207.0,0.01133696]
[1766128547521,0.60133,88223.0,88203.0,0.23808627]
[1766128547726,1.08355,88222.0,88207.0,0.01133696]
[1766128547972,1.08355,88222.0,88206.0,0.01133709]
[1766128548207,0.60133,88223.0,88200.0,0.01173786]
[1766128548418,0.05112,88224.0,88200.0,0.01173786]
[1766128548656,0.05112,88224.0,88200.0,0.0004]
[1766128548657,0.48222,88216.0,88200.0,0.0004]
[1766128548940,0.60709,88215.0,88200.0,0.0004]
[1766128549073,0.48798,88215.0,88200.0,0.0004]
[1766128549455,0.00576,88215.0,88188.0,0.01709941]
[1766128549569,0.00576,88215.0,88186.0,0.01133966]
[1766128549570,0.48222,88209.0,88186.0,0.01133966]
[1766128549776,0.60133,88204.0,88180.0,0.01174044]
[1766128549981,0.00576,88203.0,88193.0,0.01133876]